bitfinex/quotes_SOLUSD_20260120
["timestamp","ask_amount","ask_price","bid_price","bid_amount"]
[1768923508348,6.60891724,127.97,127.92,2.29728507]
[1768923508549,6.60891724,127.97,127.92,10.11460499]
[1768923508874,8.79753082,127.98,127.94,2.29728507]
[1768923509165,6.60891724,127.98,127.94,2.29728507]
[1768923509365,5.17982853,127.97,127.94,2.29728507]
[1768923509540,0.4693,127.96,127.94,2.29728507]
[1768923511549,9.26683082,127.96,127.91,14.42667192]
[1768923511754,6.60891724,127.95,127.91,2.29728507]
[1768923511952,8.79753082,127.95,127.91,2.29728507]
[1768923513053,16.61308401,127.95,127.91,2.29728507]
[1768923513274,6.60891724,127.93,127.89,2.29728507]
[1768923513469,6.60891724,127.92,127.87,26.02620231]
[1768923513670,6.60891724,127.91,127.87,2.29728507]
[1768923514169,2.18861358,127.92,127.87,2.29728507]
[1768923514170,8.79753082,127.92,127.87,8.90620231]
[1768923514347,6.60891724,127.92,127.88,2.29728507]
[1768923514548,6.60891724,127.93,127.89,2.29728507]
[1768923514748,2.18861358,127.95,127.91,2.29728507]
[1768923514964,6.60891724,127.95,127.92,2.29728507]
[1768923515169,7.07821724,127.96,127.92,2.29728507]
[1768923516870,6.60891724,127.94,127.9,2.29728507]
[1768923517369,6.60891724,127.93,127.88,2.29728507]
[1768923517559,6.60891724,127.92,127.88,2.29728507]
[1768923518349,2.18861358,127.93,127.88,10.117061]
[1768923518550,8.79753082,127.93,127.88,16.72597824]
[1768923519056,0.4693,127.96,127.93,2.29728507]
[1768923520671,0.4693,127.96,127.93,8.90620231]
[1768923521950,0.4693,127.96,127.93,2.29728507]
[1768923522151,2.18861358,127.95,127.91,6.60891724]
[1768923522350,2.18861358,127.95,127.9,16.72431404]
[1768923522351,8.79753082,127.95,127.9,16.72431404]
[1768923522764,14.89325134,127.96,127.91,2.29728507]
[1768923522963,7.07821724,127.96,127.91,8.90620231]
[1768923523781,7.07821724,127.96,127.91,16.72418635]
[1768923524362,0.4693,127.96,127.93,8.8101148]
[1768923524677,0.4693,127.96,127.93,2.20119756]
[1768923526674,0.4693,127.96,127.93,16.62681912]
[1768923527355,8.7981563,127.94,127.89,2.28190167]
[1768923527554,6.60891724,127.93,127.89,2.28190167]
[1768923527974,6.60891724,127.92,127.87,33.83097286]
[1768923528183,8.7981563,127.92,127.87,19.40190167]
[1768923528354,6.60891724,127.9,127.85,16.81208669]
[1768923528555,6.60891724,127.9,127.85,14.53018502]
[1768923528769,6.60891724,127.9,127.86,2.28190167]
[1768923528950,6.61074815,127.9,127.86,2.28190167]
[1768923529156,6.61074815,127.9,127.86,10.10293195]
[1768923529366,6.61074815,127.9,127.86,2.28190167]
[1768923529588,8.79998721,127.89,127.85,0.1]
[1768923529889,8.79998721,127.89,127.85,7.92166601]
[1768923530391,9.26928721,127.89,127.85,7.92166601]
[1768923530573,9.26928721,127.89,127.85,10.20356768]
[1768923531370,0.4693,127.89,127.85,16.81431583]
[1768923531986,7.08004815,127.89,127.85,10.20356768]
[1768923532788,0.4693,127.89,127.85,16.81431583]
[1768923533386,0.4693,127.89,127.85,8.99264982]
[1768923533694,0.4693,127.89,127.85,16.81424931]
[1768923533868,0.4693,127.89,127.85,8.99264982]
[1768923534068,8.79998721,127.88,127.85,0.1]
[1768923534765,6.61074815,127.87,127.85,0.1]
[1768923534972,8.79998721,127.87,127.85,0.1]
[1768923535191,6.61074815,127.86,127.84,0.1]
[1768923535373,8.79998721,127.87,127.84,0.1]
[1768923535769,6.61074815,127.86,127.84,0.1]
[1768923536090,8.79998721,127.86,127.84,0.1]
[1768923536389,8.79998721,127.86,127.79,2.28190167]
[1768923536390,2.18923906,127.85,127.79,2.28190167]
[1768923536571,6.61074815,127.83,127.79,2.28190167]
[1768923536766,8.79998721,127.84,127.79,8.89264982]
[1768923537262,6.61074815,127.84,127.8,8.89264982]
[1768923537690,6.61074815,127.84,127.8,2.28190167]
[1768923538894,8.79998721,127.84,127.8,2.28190167]
[1768923539298,8.79998721,127.83,127.78,16.71833141]
[1768923539691,8.79998721,127.82,127.78,2.28190167]
[1768923539905,8.79998721,127.82,127.77,16.81895114]
[1768923540612,8.79998721,127.8,127.77,0.1]
[1768923541694,8.73998722,127.8,127.77,0.1]
[1768923541900,2.12923907,127.8,127.77,0.1]
[1768923542075,8.73998722,127.8,127.77,0.1]
[1768923542475,6.61074815,127.8,127.77,0.1]
[1768923542686,6.61074815,127.82,127.78,2.28190167]
[1768923543288,6.61074815,127.81,127.78,2.28190167]
[1768923543494,6.61074815,127.81,127.77,2.38190167]
[1768923543675,6.61074815,127.8,127.77,0.1]
[1768923543872,6.61074815,127.8,127.77,2.38190167]
[1768923544078,6.61074815,127.83,127.79,2.28190167]
[1768923544599,2.18923906,127.86,127.81,2.28190167]
[1768923544997,2.18923906,127.86,127.81,8.89264982]
[1768923544998,8.79998721,127.86,127.81,8.89264982]
[1768923545182,6.61074815,127.85,127.81,2.28190167]
[1768923545694,8.79998721,127.83,127.79,2.28190167]
[1768923545901,6.61074815,127.84,127.79,8.89264982]
[1768923546097,6.61074815,127.84,127.79,14.43589736]
[1768923546310,6.61074815,127.84,127.8,2.28190167]
[1768923546599,8.79998721,127.84,127.79,8.89264982]
[1768923546802,6.61074815,127.84,127.79,2.28190167]
[1768923546981,6.61074815,127.84,127.77,19.66568862]
[1768923546982,6.61074815,127.82,127.77,33.95892575]
[1768923547679,6.61074815,127.82,127.77,26.13264982]
[1768923547881,6.61074815,127.82,127.77,33.95901687]
[1768923548493,6.61074815,127.82,127.78,2.28190167]
[1768923548885,8.79998721,127.85,127.8,8.89264982]
[1768923550004,6.61074815,127.84,127.8,2.28190167]
[1768923550204,6.61074815,127.84,127.8,8.89264982]
[1768923550406,8.79998721,127.85,127.8,8.89264982]
[1768923550717,8.79998721,127.85,127.8,16.71696807]
[1768923551578,2.18923906,127.89,127.83,6.61074815]
[1768923551914,8.79998721,127.91,127.87,6.61074815]
[1768923552085,2.18923906,127.91,127.88,6.61074815]
[1768923552709,6.61074815,127.92,127.88,6.61074815]
[1768923552710,8.79998721,127.93,127.88,14.43057308]
[1768923552908,2.18923906,127.92,127.88,6.61074815]
[1768923553110,8.79998721,127.91,127.85,19.42190167]
[1768923553314,7.81680368,127.93,127.84,6.61074815]
[1768923553315,2.18923906,127.88,127.84,6.61074815]
[1768923553611,2.18923906,127.92,127.85,6.61074815]
[1768923553826,8.79998721,127.91,127.86,6.61074815]
[1768923554115,2.18923906,127.9,127.86,6.61074815]
[1768923554310,8.79998721,127.9,127.86,6.61074815]
[1768923554615,8.79998721,127.9,127.85,10.10316535]
[1768923555000,6.61074815,127.89,127.85,16.7139135]
[1768923555205,8.79998721,127.9,127.85,16.7139135]
[1768923555396,8.92561568,127.89,127.85,2.28190167]
[1768923555597,8.92561568,127.89,127.84,6.61074815]
[1768923555814,8.92561568,127.89,127.84,16.62853541]
[1768923557011,8.92561568,127.89,127.85,6.61074815]
[1768923557213,8.92561568,127.89,127.85,6.58074815]
[1768923558019,8.92561568,127.89,127.85,8.77631684]
[1768923558414,6.61074815,127.9,127.86,8.80631684]
[1768923558596,16.74387601,127.91,127.86,8.80631684]
[1768923558914,2.31486753,127.9,127.86,8.80631684]
[1768923559115,2.31486753,127.92,127.88,8.80631684]
[1768923559316,2.31486753,127.92,127.89,6.61074815]
[1768923559510,2.31486753,127.91,127.87,6.61074815]
[1768923559715,8.92561568,127.91,127.87,6.61074815]
[1768923559915,2.31486753,127.91,127.87,6.61074815]
[1768923560424,8.92561568,127.93,127.89,6.61074815]
[1768923560799,8.92561568,127.93,127.88,8.80631684]
[1768923561323,17.21177494,127.93,127.88,8.80631684]
[1768923561504,9.39491568,127.93,127.88,8.80631684]
[1768923561814,17.21174693,127.93,127.88,8.80631684]
[1768923562209,8.92561568,127.92,127.87,6.61074815]
[1768923562410,8.92561568,127.92,127.87,8.80631684]
[1768923562616,2.31486753,127.92,127.87,8.80631684]
[1768923562808,8.92561568,127.92,127.87,16.62670831]
[1768923563411,2.31486753,127.9,127.86,23.75074815]
[1768923563623,6.61074815,127.91,127.87,8.80631684]
[1768923563826,8.92561568,127.92,127.87,8.80631684]
[1768923564213,6.61074815,127.91,127.87,8.80631684]
[1768923564413,8.92561568,127.91,127.87,8.80631684]
[1768923565413,2.31486753,127.91,127.87,16.62671902]
[1768923565823,9.39491568,127.93,127.89,8.80631684]
[1768923566324,17.21184881,127.93,127.88,8.80631684]
[1768923566527,0.4693,127.93,127.9,8.80631684]
[1768923566818,0.4693,127.93,127.91,8.80631684]
[1768923567002,0.4693,127.93,127.91,2.19556869]
[1768923567922,0.4693,127.93,127.9,6.61074815]
[1768923568125,0.4693,127.93,127.89,8.80631684]
[1768923568313,9.39491568,127.93,127.88,6.61074815]
[1768923568517,14.8968315,127.93,127.88,8.80631684]
[1768923568716,14.8968315,127.93,127.87,7.8201618]
[1768923568717,8.92561568,127.92,127.87,8.80631684]
[1768923568917,6.61074815,127.92,127.87,8.80631684]
[1768923569117,8.28608335,127.93,127.85,8.80631684]
[1768923569118,8.92561568,127.9,127.85,8.80631684]
[1768923569314,6.61074815,127.89,127.85,16.62795615]
[1768923569619,8.92561568,127.9,127.86,16.6273471]
[1768923571307,8.92561568,127.9,127.86,8.80631684]
[1768923571505,8.92561568,127.9,127.86,2.19556869]
[1768923573018,8.92561568,127.89,127.84,16.62849262]
[1768923573406,6.61074815,127.88,127.84,16.62849262]
[1768923573903,8.92561568,127.89,127.84,16.62849262]
[1768923574126,8.92561568,127.89,127.85,2.19556869]
[1768923574423,8.92561568,127.89,127.81,2.19556869]
[1768923574424,2.31486753,127.85,127.81,2.19556869]
[1768923574625,8.92561568,127.85,127.81,2.19556869]
[1768923575406,6.61074815,127.85,127.81,14.43472029]
[1768923575724,8.92561568,127.87,127.82,16.62972067]
[1768923577038,8.92561568,127.87,127.83,2.19556869]
[1768923577720,6.61074815,127.86,127.83,2.19556869]
[1768923578430,8.92645276,127.85,127.81,2.11920484]
[1768923578930,2.31570461,127.85,127.81,8.72995299]
[1768923581438,2.31570461,127.85,127.81,16.55400255]
[1768923582113,8.92645276,127.86,127.81,16.55400255]
[1768923582510,2.31570461,127.86,127.82,2.11920484]
[1768923582706,8.92645276,127.86,127.82,2.11920484]
[1768923584429,2.32069059,127.85,127.81,6.61074815]
[1768923584637,2.32069059,127.85,127.81,8.9387136]
[1768923585328,8.93143874,127.85,127.81,8.9387136]
[1768923585833,8.93143874,127.85,127.81,2.32796545]
[1768923586516,8.93143874,127.85,127.77,10.11713463]
[1768923586517,2.17291089,127.81,127.77,10.11713463]
[1768923586723,8.72365905,127.81,127.77,10.11713463]
[1768923586937,8.72365905,127.81,127.77,2.29091736]
[1768923587232,6.61074815,127.81,127.77,0.1]
[1768923587437,44.51600162,127.85,127.77,10.11744998]
[1768923587612,6.61074815,127.81,127.77,10.11744998]
[1768923588014,6.61074815,127.81,127.77,2.29091736]
[1768923588415,6.61074815,127.8,127.77,0.1]
[1768923589425,8.78365904,127.81,127.77,0.1]
[1768923590940,8.79329329,127.81,127.77,0.1]
[1768923591336,2.17291089,127.8,127.77,0.1]
[1768923592416,2.64221089,127.8,127.77,0.1]
[1768923592636,6.6203824,127.78,127.75,0.1]
[1768923592840,8.79329329,127.78,127.75,0.1]
[1768923594142,2.17291089,127.78,127.75,0.1]
[1768923594438,0.4693,127.8,127.77,8.81129976]
[1768923594739,0.4693,127.8,127.77,2.19091736]
[1768923596425,0.4693,127.8,127.77,10.01729098]
[1768923596846,0.4693,127.8,127.77,2.19091736]
[1768923597223,7.0896824,127.8,127.77,2.19091736]
[1768923597427,0.4693,127.8,127.77,2.19091736]
[1768923598355,9.26259329,127.8,127.75,16.73889272]
[1768923598531,8.79329329,127.79,127.75,2.29091736]
[1768923598727,8.79329329,127.76,127.71,8.81129976]
[1768923599048,8.79329329,127.78,127.74,2.19091736]
[1768923599254,0.4693,127.8,127.77,2.19091736]
[1768923599543,0.4693,127.8,127.78,8.81129976]
[1768923600332,0.4693,127.8,127.77,8.81129976]
[1768923600845,2.64221089,127.8,127.76,6.6203824]
[1768923601050,2.64221089,127.8,127.76,8.81129976]
[1768923601355,0.4693,127.8,127.78,8.81129976]
[1768923601653,0.4693,127.8,127.78,2.19091736]
[1768923602547,8.79329329,127.86,127.81,8.81129976]
[1768923602728,8.79329329,127.86,127.82,2.19091736]
[1768923603051,6.6203824,127.89,127.85,2.19091736]
[1768923603250,2.17291089,127.89,127.85,8.81129976]
[1768923603554,2.17291089,127.9,127.84,19.33091736]
[1768923603731,8.79329329,127.89,127.84,25.95129976]
[1768923604443,8.79329329,127.89,127.85,8.81129976]
[1768923604444,2.17291089,127.89,127.85,8.81129976]
[1768923604947,6.6203824,127.92,127.88,2.19091736]
[1768923605141,8.79329329,127.93,127.88,2.19091736]
[1768923605624,8.79329329,127.93,127.89,2.19091736]
[1768923605825,6.6203824,127.94,127.9,2.19091736]
[1768923606022,8.79329329,127.94,127.9,2.19091736]
[1768923606226,8.79329329,127.96,127.92,2.19091736]
[1768923606433,2.17291089,127.96,127.92,8.78129976]
[1768923606831,6.6203824,127.97,127.92,14.43774772]
[1768923607144,8.79329329,127.96,127.9,31.57896814]
[1768923607351,8.79329329,127.96,127.91,6.6203824]
[1768923608042,8.79329329,127.93,127.88,31.57961514]
[1768923608247,6.6203824,127.94,127.89,14.43956209]
[1768923608444,2.17291089,127.95,127.9,16.6297251]
[1768923608626,8.79329329,127.95,127.9,16.6297251]
[1768923608827,8.79329329,127.94,127.9,2.19091736]
[1768923609433,2.17291089,127.91,127.86,27.15160199]
[1768923609744,6.6203824,127.92,127.87,10.01130876]
[1768923610245,6.6203824,127.92,127.88,2.19091736]
[1768923610545,8.79329329,127.94,127.9,2.19091736]
[1768923611048,8.79329329,127.91,127.86,33.77220294]
[1768923611344,8.79329329,127.91,127.86,16.63217327]
[1768923611726,6.6203824,127.91,127.87,2.19091736]
[1768923612346,27.35674499,127.94,127.87,2.19091736]
[1768923612552,6.6203824,127.91,127.87,2.19091736]
[1768923612852,6.6203824,127.9,127.85,2.19091736]
[1768923613049,7.81798846,127.92,127.86,2.19091736]
[1768923613253,6.6203824,127.9,127.86,2.19091736]
[1768923613429,6.6203824,127.91,127.87,2.19091736]
[1768923613744,6.6203824,127.92,127.88,2.19091736]
[1768923614126,8.79329329,127.94,127.9,2.19091736]
[1768923614334,6.6203824,127.93,127.9,2.16091736]
[1768923614549,8.79329329,127.92,127.86,23.7603824]
[1768923614928,6.6203824,127.91,127.86,31.58116902]
[1768923615127,6.6203824,127.92,127.86,24.96078662]
[1768923615328,6.6203824,127.93,127.88,6.6203824]
[1768923615949,6.6203824,127.94,127.89,6.6203824]
[1768923616158,6.6203824,127.97,127.92,6.6203824]
[1768923616336,8.83381164,127.97,127.93,2.38551017]
[1768923616542,6.6203824,127.96,127.93,2.38551017]
[1768923616740,6.6203824,127.96,127.92,2.38551017]
[1768923617632,6.6203824,127.95,127.9,2.38551017]
[1768923617855,8.83381164,127.95,127.9,16.82448493]
[1768923618262,8.83381164,127.95,127.91,2.38551017]
[1768923618637,2.21342924,127.95,127.91,9.00589257]
[1768923619348,6.6203824,127.96,127.91,9.00589257]
[1768923619555,8.83381164,127.96,127.91,9.00589257]
[1768923620151,16.6489084,127.96,127.91,9.00589257]
[1768923620327,6.6203824,127.95,127.91,2.38551017]
[1768923620951,10.028526,127.96,127.91,2.38551017]
[1768923621144,6.6203824,127.95,127.91,2.38551017]
[1768923621341,8.83381164,127.96,127.91,16.82379824]
[1768923622156,8.83381164,127.96,127.91,9.00589257]
[1768923622458,6.6203824,127.96,127.92,2.38551017]
[1768923623051,2.64187305,127.96,127.92,2.38551017]
[1768923623952,2.84187305,127.98,127.94,2.38551017]
[1768923624154,2.84187305,127.98,127.94,2.35551017]
[1768923624334,5.05530229,127.98,127.94,2.35551017]
[1768923624934,5.05530229,127.98,127.94,4.99738322]
[1768923625135,2.21342924,127.97,127.93,2.64187305]
[1768923625330,2.64187305,127.94,127.89,10.46070982]
[1768923625537,2.21342924,127.95,127.9,10.46045175]
[1768923625744,4.85530229,127.95,127.9,2.64187305]
[1768923626039,2.64187305,127.95,127.91,2.38551017]
[1768923627164,2.21342924,127.93,127.89,2.38551017]
[1768923627457,2.64187305,127.9,127.85,10.20673704]
[1768923627636,2.64187305,127.89,127.85,2.38551017]
[1768923628042,4.85530229,127.88,127.83,10.20819326]
[1768923628257,4.85530229,127.88,127.84,2.38551017]
[1768923628458,2.64187305,127.88,127.84,2.38551017]
[1768923628750,4.85530229,127.89,127.84,12.84964755]
[1768923628959,8.82587871,127.89,127.85,2.38551017]
[1768923629184,6.61244947,127.9,127.86,2.38551017]
[1768923629666,6.61244947,127.89,127.85,7.82153842]
[1768923629875,6.61244947,127.89,127.85,10.20704859]
[1768923630985,6.61244947,127.89,127.85,2.38551017]
[1768923631386,6.61244947,127.89,127.85,10.20712314]
[1768923632068,8.82587871,127.9,127.85,16.81957261]
[1768923632775,6.61244947,127.9,127.86,2.38551017]
[1768923633546,6.61244947,127.88,127.84,2.38551017]
[1768923633750,6.61244947,127.92,127.88,2.38551017]
[1768923633972,6.61244947,127.92,127.88,2.35551017]
[1768923634176,8.82587871,127.91,127.86,6.61244947]
[1768923635073,6.61244947,127.92,127.87,6.61244947]
[1768923635446,10.02986336,127.94,127.88,6.61244947]
[1768923635651,6.61244947,127.93,127.88,6.61244947]
[1768923635851,8.82587871,127.94,127.9,2.38551017]
[1768923636275,8.82587871,127.92,127.88,2.38551017]
[1768923636775,6.61244947,127.91,127.88,2.38551017]
[1768923636976,6.61244947,127.93,127.89,2.38551017]
[1768923637576,6.61244947,127.94,127.9,2.38551017]
[1768923638361,10.02907897,127.95,127.9,2.38551017]
[1768923638561,6.61244947,127.94,127.9,2.38551017]
[1768923639571,6.61244947,127.94,127.9,8.99795964]
[1768923640063,8.82587871,127.95,127.91,2.38551017]
[1768923640271,14.4275907,127.96,127.91,8.99795964]
[1768923640476,16.64101994,127.96,127.91,8.99795964]
[1768923640675,8.82587871,127.96,127.91,8.99795964]
[1768923641380,6.61244947,127.97,127.93,2.38551017]
[1768923641559,8.82587871,127.97,127.93,2.38551017]
[1768923642380,16.64031021,127.97,127.92,8.99795964]
[1768923642963,8.82587871,127.97,127.92,8.99795964]
[1768923643761,8.82587871,127.97,127.92,6.61244947]
[1768923643982,0.2,127.98,127.94,8.7792907]
[1768923644479,16.8290671,127.98,127.94,2.16684123]
[1768923645179,9.01526193,127.98,127.94,2.16684123]
[1768923645384,0.2,127.98,127.94,6.61244947]
[1768923645690,0.2,127.98,127.96,2.17357115]
[1768923646186,2.31478793,128.04,127.98,2.17357115]
[1768923646389,2.31478793,128.04,127.96,6.61244947]
[1768923646390,2.31478793,128.04,128.0,2.17357115]
[1768923646565,2.31478793,128.04,128.0,8.78602062]
[1768923646967,0.2,128.04,128.0,8.75602062]
[1768923647166,6.81244947,128.04,128.0,2.14357115]
[1768923648291,8.7272374,128.02,127.97,6.61244947]
[1768923648590,6.81244947,128.04,127.99,6.61244947]
[1768923648780,0.2,128.04,128.0,6.61244947]
[1768923649085,0.2,128.04,128.0,14.42484486]
[1768923649263,0.2,128.04,128.01,8.78602062]
[1768923649464,0.2,128.04,128.01,2.17357115]
[1768923651078,0.2,128.04,128.01,8.76884565]
[1768923651267,2.11478793,128.03,127.96,27.66648344]
[1768923651594,6.5952745,128.01,127.97,2.17357115]
[1768923651780,8.71006243,128.02,127.97,2.17357115]
[1768923652286,8.71006243,128.02,127.97,9.98778794]
[1768923652477,8.71006243,128.02,127.98,2.17357115]
[1768923653296,6.5952745,128.01,127.98,2.17357115]
[1768923654190,6.5952745,128.02,127.98,2.17357115]
[1768923655171,8.71006243,128.01,127.96,2.17357115]
[1768923655473,6.5952745,128.0,127.96,2.17357115]
[1768923655883,16.52089916,128.03,127.97,2.17357115]
[1768923656096,6.5952745,128.01,127.97,2.17357115]
[1768923656396,6.5952745,128.02,127.98,2.17357115]
[1768923658000,6.5952745,128.01,127.98,2.17357115]
[1768923661706,8.71006243,128.0,127.94,17.14]
[1768923661881,6.5952745,127.99,127.94,31.55097227]
[1768923662307,6.5952745,128.0,127.95,14.41077357]
[1768923662813,6.5952745,128.01,127.95,7.81528604]
[1768923663001,6.5952745,128.0,127.95,14.41056054]
[1768923663199,6.5952745,128.01,127.96,14.40987999]
[1768923663518,6.5952745,128.01,127.97,2.17357115]
[1768923663688,6.5952745,128.01,127.98,2.17357115]
[1768923664013,8.71006243,128.02,127.98,2.17357115]
[1768923664382,6.5952745,128.03,127.98,2.17357115]
[1768923664581,6.5952745,128.03,127.99,2.17357115]
[1768923665794,16.52097725,128.03,127.99,2.17357115]
[1768923665995,16.52097725,128.03,127.97,7.81429459]
[1768923665996,8.71006243,128.01,127.97,2.17357115]
[1768923669608,8.71006243,128.02,127.98,2.17357115]
[1768923671593,6.7952745,128.04,127.99,6.5952745]
[1768923671908,0.2,128.04,128.01,8.76884565]
[1768923672115,0.2,128.04,128.01,2.17357115]
[1768923673721,0.2,128.04,128.02,2.17357115]
[1768923673922,0.2,128.04,128.01,2.17357115]
[1768923674809,2.11478793,128.01,127.96,2.17357115]
[1768923675123,2.11478793,128.01,127.96,4.81161641]
[1768923675300,2.11478793,128.01,127.96,2.17357115]
[1768923675503,2.63804526,128.0,127.96,2.17357115]
[1768923678405,2.36435875,128.04,127.97,2.01400384]
[1768923678595,2.36435875,128.04,127.99,2.01400384]
[1768923678596,5.00240401,128.04,127.99,2.01400384]
[1768923678794,2.63804526,128.02,127.98,2.01400384]
[1768923679224,2.16435875,128.01,127.96,2.01400384]
[1768923679416,4.80240401,128.0,127.95,9.82924895]
[1768923679615,4.80240401,128.0,127.96,2.01400384]
[1768923680213,4.80240401,127.99,127.94,7.81578503]
[1768923680521,4.80240401,127.98,127.94,2.01400384]
[1768923681103,2.63804526,127.98,127.94,2.01400384]
[1768923681499,4.80240401,127.99,127.94,2.01400384]
[1768923682122,4.80240401,127.99,127.95,2.01400384]
[1768923684226,2.63804526,127.99,127.93,10.45457446]
[1768923684418,2.16435875,127.93,127.87,2.01400384]
[1768923684627,2.63804526,127.91,127.87,2.01400384]
[1768923685007,6.61044482,127.91,127.87,2.01400384]
[1768923685408,2.16435875,127.92,127.88,2.01400384]
[1768923685732,8.77480357,127.92,127.88,2.01400384]
[1768923686722,6.61044482,127.91,127.87,2.01400384]
[1768923686920,8.77480357,127.9,127.86,2.01400384]
[1768923687127,6.55044483,127.89,127.85,9.83551359]
[1768923687327,6.55044483,127.89,127.85,2.01400384]
[1768923687911,2.16435875,127.85,127.81,4.07865076]
[1768923688110,6.61044482,127.82,127.78,2.01400384]
[1768923689430,0.28313265,127.86,127.79,2.01400384]
[1768923689608,6.61044482,127.84,127.8,2.01400384]
[1768923689815,6.61044482,127.83,127.8,2.01400384]
[1768923690228,6.61044482,127.81,127.78,2.01400384]
[1768923690617,6.61044482,127.81,127.76,7.82680949]
[1768923690823,6.61044482,127.79,127.76,2.01400384]
[1768923691019,6.61044482,127.82,127.78,2.01400384]
[1768923691410,6.61044482,127.83,127.78,14.43602466]
[1768923691741,6.61044482,127.83,127.79,2.01400384]
[1768923692833,7.08114482,127.83,127.79,2.01400384]
[1768923693033,0.4707,127.83,127.8,2.01400384]
[1768923693212,6.61044482,127.85,127.8,6.61044482]
[1768923693408,6.61044482,127.86,127.82,2.01400384]
[1768923693813,6.61044482,127.87,127.83,2.01400384]
[1768923694239,0.73819517,127.9,127.84,2.01400384]
[1768923694545,6.61044482,127.88,127.84,2.01400384]
[1768923696337,6.61044482,127.86,127.82,2.01400384]
[1768923697432,6.61044482,127.87,127.83,2.01400384]
[1768923697636,6.61044482,127.87,127.83,9.83680557]
[1768923697821,6.61044482,127.89,127.85,2.01400384]
[1768923698144,0.72082921,127.91,127.82,14.43381662]
[1768923698145,7.32561784,127.87,127.82,14.43381662]
[1768923698331,6.61044482,127.87,127.83,2.01400384]
[1768923699322,6.61044482,127.87,127.83,9.83686843]
[1768923699540,6.61044482,127.88,127.84,2.01400384]
[1768923699734,6.61044482,127.89,127.85,2.01400384]
[1768923699936,6.61044482,127.9,127.85,6.61044482]
[1768923700120,6.61044482,127.9,127.86,2.01400384]
[1768923700323,7.32115979,127.91,127.86,2.01400384]
[1768923700837,7.81751911,127.92,127.87,8.62444866]
[1768923700838,6.61044482,127.92,127.87,8.62444866]
[1768923701145,6.61044482,127.91,127.87,2.01400384]
[1768923701526,7.31239671,127.88,127.83,2.01400384]
[1768923701728,7.31239671,127.88,127.8,6.61044482]
[1768923701729,6.61044482,127.85,127.81,2.01400384]
[1768923702143,6.61044482,127.86,127.82,2.01400384]
[1768923702333,23.18173426,127.9,127.82,2.01400384]
[1768923702334,6.61044482,127.87,127.83,2.01400384]
[1768923703048,8.51725183,127.89,127.83,2.01400384]
[1768923703250,6.61044482,127.87,127.83,2.01400384]
[1768923703452,6.61044482,127.86,127.81,16.40646031]
[1768923703967,6.61044482,127.86,127.82,1.97198576]
[1768923704936,6.61044482,127.85,127.82,1.97198576]
[1768923705637,6.61044482,127.85,127.8,16.55970789]
[1768923706464,8.493793,127.87,127.81,2.12479802]
[1768923706687,6.61044482,127.84,127.79,16.56049496]
[1768923706842,6.61044482,127.84,127.79,9.95005014]
[1768923707046,6.61044482,127.84,127.79,16.56049496]
[1768923707440,6.61044482,127.84,127.79,2.12479802]
[1768923707654,0.67282754,127.85,127.79,2.12479802]
[1768923707655,6.61044482,127.83,127.79,2.12479802]
[1768923707858,6.61044482,127.84,127.8,2.12479802]
[1768923708170,6.61044482,127.82,127.77,2.12479802]
[1768923708374,6.61044482,127.8,127.75,2.22479802]
[1768923708542,6.61044482,127.79,127.75,2.22479802]
[1768923708968,6.61044482,127.79,127.76,2.12479802]
[1768923709188,6.61044482,127.8,127.76,2.12479802]
[1768923709556,6.61044482,127.77,127.75,0.1]
[1768923710552,7.8255777,127.79,127.75,0.1]
[1768923710753,6.61044482,127.78,127.75,2.22479802]
[1768923711074,6.62354817,127.78,127.75,2.22479802]
[1768923711687,6.62354817,127.78,127.75,0.1]
[1768923712476,6.62354817,127.77,127.75,0.1]
[1768923712863,6.62354817,127.78,127.75,2.22479802]
[1768923713068,6.62354817,127.79,127.75,2.22479802]
[1768923714260,20.2014392,127.82,127.76,2.12479802]
[1768923714261,6.62354817,127.8,127.76,2.12479802]
[1768923714461,6.62354817,127.79,127.76,2.12479802]
[1768923715475,8.46288668,127.81,127.75,0.1]
[1768923715476,6.62354817,127.78,127.75,2.22479802]
[1768923716790,6.62354817,127.76,127.75,0.1]
[1768923717570,6.62354817,127.77,127.75,0.1]
[1768923717769,6.62354817,127.77,127.75,2.22479802]
[1768923717966,7.82500977,127.8,127.76,2.12479802]
[1768923717967,6.62354817,127.8,127.76,2.12479802]
[1768923718170,6.62354817,127.83,127.78,2.12479802]
[1768923718561,6.62354817,127.83,127.75,44.63711043]
[1768923718562,6.62354817,127.86,127.81,2.12479802]
[1768923718762,8.44789702,127.88,127.76,2.12479802]
[1768923718763,6.62354817,127.82,127.76,2.12479802]
[1768923718963,6.62354817,127.82,127.77,6.62354817]
[1768923719173,6.62354817,127.81,127.78,2.12479802]
[1768923720289,6.62354817,127.79,127.75,2.22479802]
[1768923720495,6.62354817,127.79,127.75,10.05247894]
[1768923720684,6.62354817,127.79,127.76,2.12479802]
[1768923720988,6.62354817,127.79,127.75,0.1]
[1768923721173,6.62354817,127.78,127.75,0.1]
[1768923721760,6.62354817,127.76,127.72,2.12479802]
[1768923721965,6.62354817,127.75,127.71,2.12479802]